bitfinex/quotes_ETHUSD_20250801
["timestamp","ask_amount","ask_price","bid_price","bid_amount"]
[1754088799145,0.144,3464.5,3463.6,2.88909658]
[1754088799146,0.694,3464.7,3464.2,0.144]
[1754088799677,0.7437,3464.7,3464.2,0.144]
[1754088799881,0.144,3464.8,3464.2,0.144]
[1754088800084,1.2083,3465.8,3464.2,0.30307786]
[1754088800266,7.3976,3466.3,3465.4,0.144]
[1754088800445,0.144,3466.2,3465.7,0.144]
[1754088800644,0.144,3466.2,3464.9,0.7936]
[1754088800645,0.4646,3467.5,3465.0,0.02886002]
[1754088800868,0.7437,3467.2,3466.3,2.88484284]
[1754088801071,0.7437,3467.2,3466.4,2.88483186]
[1754088801285,0.7437,3467.2,3465.5,1.2427]
[1754088801496,0.50065318,3467.1,3464.4,0.7936]
[1754088801656,0.144,3465.8,3465.3,0.144]
[1754088801855,0.7437,3465.7,3465.3,0.144]
[1754088802160,0.55,3465.5,3464.4,0.62566]
[1754088802361,0.55,3465.5,3465.1,0.144]
[1754088802575,0.55,3465.3,3464.2,2.88660468]
[1754088802891,0.55,3465.3,3464.7,0.144]
[1754088802892,0.8877,3465.2,3464.7,0.144]
[1754088803094,0.144,3465.2,3464.7,0.144]
[1754088803314,1.24437399,3465.1,3463.6,6.936]
[1754088803585,0.694,3464.7,3464.3,0.144]
[1754088803799,0.55,3464.5,3463.6,0.002]
[1754088804005,3.03044625,3464.5,3464.0,0.144]
[1754088804217,4.68088931,3464.4,3463.6,0.002]
[1754088804370,0.55,3463.8,3463.6,0.002]
[1754088804559,3.47317463,3463.7,3463.6,0.002]
[1754088804754,4.68147463,3463.7,3463.6,0.002]
[1754088805070,4.68147463,3463.7,3461.3,2.88906923]
[1754088805071,6.43717943,3463.6,3461.3,2.88906923]
[1754088805395,3.43808664,3462.5,3462.4,0.1448]
[1754088805696,0.55,3462.4,3460.7,0.7936]
[1754088805868,2.88854637,3462.0,3461.8,0.1448]
[1754088806068,0.7437,3461.9,3461.6,0.1448]
[1754088806265,1.2937,3462.5,3461.6,0.1448]
[1754088806470,2.88846111,3462.1,3461.6,0.1448]
[1754088806858,0.1448,3462.2,3461.6,0.1448]
[1754088807369,2.88849301,3462.1,3461.6,0.1448]
[1754088807567,3.03315494,3462.2,3461.6,0.1448]
[1754088807757,0.1448,3462.2,3461.6,0.1448]
[1754088807985,3.0,3462.6,3460.8,0.81777]
[1754088807986,0.55,3462.0,3460.8,0.81777]
[1754088808291,3.58337117,3462.0,3461.5,0.1448]
[1754088808657,2.88862156,3461.9,3461.5,0.1448]
[1754088808858,0.1448,3462.0,3461.5,0.1448]
[1754088809105,2.88864959,3461.9,3461.7,0.1448]
[1754088809296,2.88827589,3462.3,3460.9,3.66462316]
[1754088809611,0.144,3462.7,3462.2,0.1448]
[1754088809904,0.144,3462.9,3462.2,0.1448]
[1754088810059,0.144,3463.6,3462.7,2.88783652]
[1754088810260,0.144,3463.6,3462.0,2.88845939]
[1754088810261,1.2083,3463.5,3461.8,2.88859816]
[1754088810571,0.144,3462.7,3461.1,2.88924204]
[1754088810760,2.88741951,3463.3,3461.9,0.1448]
[1754088810761,0.1448,3462.4,3461.9,0.1448]
[1754088810961,0.7437,3462.3,3461.9,0.1448]
[1754088811396,0.1448,3462.4,3461.9,0.1448]
[1754088811697,0.7437,3463.3,3462.3,3.0330258]
[1754088811870,0.144,3463.4,3462.6,2.88795004]
[1754088812235,0.144,3463.5,3463.0,0.144]
[1754088812397,3.76628757,3463.7,3463.3,0.144]
[1754088812599,0.7437,3463.6,3463.3,0.144]
[1754088812759,6.43733614,3463.4,3463.3,0.144]
[1754088812958,7.64563614,3463.4,3463.3,0.144]
[1754088813173,2.88784572,3462.8,3461.8,0.4491]
[1754088813392,0.144,3463.0,3462.5,0.1448]
[1754088813596,0.4646,3464.1,3462.1,0.0288842]
[1754088813796,0.144,3463.6,3463.1,0.144]
[1754088814097,0.87919783,3463.7,3463.4,0.144]
[1754088814672,0.87919783,3463.7,3463.4,0.7936]
[1754088814873,3.6298452,3464.9,3463.6,2.88716941]
[1754088815074,0.7437,3464.9,3463.8,2.88700271]
[1754088815401,0.55,3464.8,3463.7,3.58879307]
[1754088815703,2.88651441,3464.4,3463.7,0.7017136]
[1754088815872,0.7300792,3464.6,3462.9,1.2427]
[1754088816092,0.55,3464.3,3463.9,0.144]
[1754088816292,0.144,3464.0,3463.3,0.144]
[1754088816494,0.8877,3464.5,3464.0,0.144]
[1754088816693,5.445,3464.6,3463.5,0.7936]
[1754088816914,5.445,3464.6,3464.4,0.144]
[1754088817608,2.88671005,3464.2,3462.8,1.2427]
[1754088817929,2.88664275,3464.3,3463.9,0.144]
[1754088818094,7.23872292,3464.5,3463.9,0.144]
[1754088818287,2.88664138,3464.3,3463.9,0.144]
[1754088818482,2.88668075,3464.2,3463.9,0.144]
[1754088818683,0.55,3464.4,3463.9,0.144]
[1754088818890,4.09488603,3464.3,3463.9,0.144]
[1754088819117,2.88683602,3464.0,3463.9,0.144]
[1754088819333,2.88683602,3464.0,3462.8,4.13050696]
[1754088819334,2.88694407,3463.9,3463.8,0.144]
[1754088819488,0.7437,3464.1,3463.8,0.144]
[1754088820128,0.7437,3464.0,3462.7,3.0]
[1754088820287,2.88702665,3463.8,3463.5,0.144]
[1754088820712,0.7437,3463.8,3463.5,0.144]
[1754088821243,0.144,3464.3,3463.7,0.144]
[1754088821437,5.589,3464.6,3464.1,0.144]
[1754088821585,6.3327,3464.6,3464.1,0.144]
[1754088821783,0.55,3464.5,3464.1,0.144]
[1754088821986,0.55,3464.5,3462.6,1.2427]
[1754088821987,0.55,3464.3,3462.6,1.2427]
[1754088822186,0.144,3464.0,3463.5,0.144]
[1754088822424,5.436,3464.0,3462.7,2.88791983]
[1754088822625,2.88666203,3464.3,3462.5,0.002]
[1754088822626,0.55,3464.5,3463.9,0.144]
[1754088822938,5.435,3464.4,3464.1,0.144]
[1754088823233,5.434,3464.7,3463.6,0.4491]
[1754088823384,5.434,3464.7,3464.2,0.144]
[1754088823696,5.578,3465.7,3464.8,2.88611477]
[1754088823896,5.434,3465.7,3465.2,0.144]
[1754088824101,3.62878939,3466.1,3464.7,0.02886252]
[1754088824102,0.7437,3466.1,3465.1,2.88588678]
[1754088824347,2.88533469,3465.9,3464.7,4.2427]
[1754088824489,2.88533469,3465.9,3464.0,1.2427]
[1754088824490,2.88617886,3464.8,3464.0,1.2427]
[1754088824699,2.88589606,3465.2,3464.0,1.2427]
[1754088824888,0.55,3465.3,3463.8,0.02887002]
[1754088825102,0.55,3465.1,3463.4,0.7936]
[1754088825403,2.88623296,3464.8,3464.7,0.144]
[1754088825724,1.8445,3464.8,3464.3,0.144]
[1754088825927,2.88657488,3464.4,3464.1,0.144]
[1754088826127,2.88658905,3464.3,3464.1,0.144]
[1754088826311,2.88666936,3464.2,3464.1,0.144]
[1754088826898,2.88692493,3463.9,3462.5,0.002]
[1754088827150,0.55,3463.5,3462.5,0.002]
[1754088827428,0.144,3463.3,3462.8,0.144]
[1754088827629,3.43800323,3462.6,3462.5,0.002]
[1754088827848,3.47410327,3462.6,3462.5,0.002]
[1754088828145,7.76940327,3462.6,3462.5,0.002]
[1754088828292,3.43817005,3462.4,3461.5,0.1448]
[1754088828493,2.88876919,3461.7,3461.5,0.1448]
[1754088828754,0.7108,3462.5,3461.4,2.88899392]
[1754088828913,0.7108,3462.5,3461.0,1.18699338]
[1754088828914,0.1448,3462.5,3461.6,0.1448]
[1754088829096,5.425,3462.6,3462.3,0.1448]
[1754088829415,5.425,3462.6,3461.4,0.4376]
[1754088829416,3.59890918,3462.5,3462.2,0.1448]
[1754088829612,2.88817121,3462.4,3462.2,0.1448]
[1754088829815,5.425,3462.6,3462.2,0.1448]
[1754088830013,8.31303045,3462.6,3462.4,0.1448]
[1754088830314,5.425,3462.6,3462.4,0.1448]
[1754088830707,0.144,3463.3,3462.5,4.04618664]
[1754088830903,0.144,3463.3,3462.6,0.44797869]
[1754088831108,0.144,3463.3,3462.7,3.0]
[1754088831305,0.4397,3464.2,3463.2,0.144]
[1754088831306,0.144,3463.8,3463.2,0.144]
[1754088831494,2.88693351,3463.9,3463.2,0.144]
[1754088831690,0.144,3463.9,3463.4,0.144]
[1754088832003,5.423,3464.0,3463.6,0.144]
[1754088832321,8.30960622,3464.3,3463.8,0.144]
[1754088832516,2.88666936,3464.2,3463.8,0.144]
[1754088832697,9.02039919,3464.3,3463.8,0.144]
[1754088833044,6.1338,3464.3,3463.8,0.144]
[1754088833528,2.88668063,3464.2,3463.8,0.144]
[1754088833731,0.144,3464.4,3463.8,0.144]
[1754088834041,6.938,3465.2,3462.9,3.0]
[1754088834042,5.419,3464.3,3462.9,3.0]
[1754088834345,5.419,3464.3,3462.8,0.7205]
[1754088834346,0.55,3464.1,3463.0,0.3]
[1754088834627,0.55,3464.1,3462.8,0.7205]
[1754088834628,2.88689889,3464.0,3462.8,0.7205]
[1754088834794,5.418,3464.1,3462.9,0.02887753]
[1754088834991,0.55,3464.0,3462.8,0.7205]
[1754088835194,5.418,3464.1,3462.9,3.02887753]
[1754088835395,5.418,3464.1,3463.5,2.88722844]
[1754088835597,0.7108,3465.4,3463.6,1.1581]
[1754088835842,5.417,3465.5,3463.9,3.0]
[1754088836048,5.417,3465.6,3464.0,2.91568464]
[1754088836253,5.417,3465.6,3464.8,2.88616873]
[1754088836410,5.417,3465.6,3464.4,2.8864302]
[1754088836625,2.88599455,3465.1,3463.8,2.88700271]
[1754088836793,2.88648343,3464.5,3463.0,0.70747645]
[1754088836998,0.7108,3464.7,3463.9,2.88686248]
[1754088837256,0.9897,3464.9,3463.9,0.28868625]
[1754088837550,2.88673036,3464.2,3463.0,7.31564317]
[1754088837839,1.2608,3464.3,3463.1,2.88758626]
[1754088838012,2.88772318,3464.2,3463.1,4.05690253]
[1754088838338,2.88676408,3464.1,3463.1,4.05687287]
[1754088838521,2.88675269,3464.1,3463.1,1.16931627]
[1754088838706,2.88687196,3464.0,3463.1,1.16931627]
[1754088838935,2.88676963,3464.1,3463.1,4.05688226]
[1754088839136,0.551,3464.2,3463.1,1.16931627]
[1754088839304,0.55,3464.1,3462.8,0.46847836]
[1754088839637,0.001,3464.2,3463.6,2.8871424]
[1754088839936,0.001,3464.2,3462.9,0.7205]
[1754088840237,0.001,3464.2,3463.8,2.88692622]
[1754088840434,0.7108,3466.1,3464.1,2.88675269]
[1754088840634,0.87088605,3466.4,3464.4,0.55]
[1754088840837,0.87088605,3466.4,3466.3,2.88492052]
[1754088841052,1.1505,3467.6,3466.3,3.0]
[1754088841208,1.1505,3467.6,3466.4,0.02884837]
[1754088841410,3.0,3467.6,3466.0,0.0288517]
[1754088841601,6.937,3467.9,3465.7,3.0]
[1754088841602,2.88451635,3466.8,3465.7,3.0]
[1754088841934,0.03605734,3466.7,3465.3,5.88574317]
[1754088842108,1.62686353,3466.8,3465.4,0.02885669]
[1754088842359,0.55,3466.6,3464.7,0.4376]
[1754088842539,4.03508922,3466.7,3465.1,3.0]
[1754088842738,1.1505,3466.7,3465.2,0.32885836]
[1754088842971,2.88469851,3466.6,3465.6,2.88544672]
[1754088843151,2.88469851,3466.6,3465.2,0.32885836]
[1754088843152,5.407,3466.8,3465.7,0.02885419]
[1754088843484,2.88342175,3468.2,3465.9,3.0]
[1754088843485,12.343,3467.9,3465.9,3.0]
[1754088843658,2.88437669,3467.0,3466.0,3.47654962]
[1754088843859,4.72805188,3467.8,3465.9,3.0]
[1754088844054,2.88450444,3466.8,3466.7,0.144]
[1754088844253,2.8843988,3467.0,3465.9,2.88523991]
[1754088844593,0.55,3466.9,3465.1,5.405]
[1754088844755,2.88468548,3466.6,3466.3,0.144]
[1754088844955,2.88491199,3466.4,3466.3,0.144]
[1754088845277,0.55,3466.2,3464.4,2.8864352]
[1754088845485,0.55,3466.0,3465.5,0.144]
[1754088845654,3.57918875,3466.0,3465.5,0.144]
[1754088845987,2.88524865,3466.0,3465.9,0.144]
[1754088846152,5.546,3466.4,3465.9,0.144]
[1754088846153,8.28684417,3466.4,3465.9,0.144]
[1754088846483,5.402,3466.4,3465.3,0.02885753]
[1754088846644,5.402,3466.4,3466.3,0.144]
[1754088847558,5.4,3467.2,3466.3,3.02886698]
[1754088847787,5.4,3467.2,3466.4,2.91368029]
[1754088848146,2.8837558,3467.7,3466.7,2.8845715]
[1754088848349,2.883691,3467.8,3466.6,2.88466858]
[1754088848655,5.398,3467.7,3466.8,3.0]
[1754088848853,5.398,3467.7,3465.8,5.398]
[1754088849162,2.88409306,3467.3,3466.3,3.0]
[1754088849356,2.88409306,3467.3,3466.2,2.88494699]
[1754088849357,3.43383896,3467.6,3467.3,0.144]
[1754088849559,0.55,3467.2,3465.2,5.397]
[1754088849758,0.03605318,3467.1,3465.3,3.0]
[1754088849981,5.397,3467.2,3465.2,5.397]
[1754088850186,2.88502653,3466.2,3465.3,2.88574902]
[1754088850386,0.0360615,3466.3,3464.9,0.6934]
[1754088850588,2.88507313,3466.2,3465.0,3.67756574]
[1754088850788,2.88507313,3466.2,3465.3,2.88575281]
[1754088851105,2.88524004,3466.0,3465.1,2.88591357]
[1754088851319,5.396,3466.5,3465.0,0.79160002]
[1754088851533,5.396,3466.5,3464.9,0.6934]
[1754088851730,2.88558764,3465.5,3464.6,2.8862752]
[1754088851889,2.88533349,3465.9,3464.7,2.88620366]
[1754088852075,2.88533671,3465.8,3464.2,0.56836669]
[1754088852427,2.88539548,3465.8,3464.2,0.56836669]
[1754088852610,2.8856838,3465.4,3464.6,3.0]
[1754088852816,2.88576079,3465.3,3464.4,2.88648049]
[1754088852994,3.55,3466.4,3464.6,2.88633463]
[1754088853319,2.88578108,3465.3,3464.4,2.88650271]
[1754088853664,2.88520002,3466.0,3464.5,0.02886419]
[1754088853844,8.27490184,3467.6,3464.6,0.55]
[1754088853981,2.88425485,3467.1,3465.3,3.0]
[1754088854188,2.88412984,3467.3,3465.7,2.88535885]
[1754088854424,2.88472929,3466.6,3465.7,3.46533905]
[1754088854820,3.55,3466.8,3462.9,9.70819269]
[1754088855025,2.88556267,3465.6,3464.7,3.0]
[1754088855223,2.88559398,3465.5,3464.7,3.0]
[1754088855588,2.88559398,3465.5,3464.7,2.88623792]
[1754088855896,2.88524895,3466.0,3464.9,3.0]
[1754088856095,5.388,3466.2,3465.0,0.61747558]
[1754088856283,2.88530645,3465.9,3465.0,2.88598269]
[1754088856481,2.88530645,3465.9,3464.1,5.389]
[1754088856482,5.388,3466.3,3464.2,3.0]
[1754088856686,2.884925,3466.3,3465.4,2.88562286]
[1754088856888,2.88452017,3466.8,3465.9,2.88524492]
[1754088857139,2.88405371,3467.4,3466.5,2.88469935]
[1754088857140,2.88405807,3467.4,3466.5,2.88469935]
[1754088857358,6.933,3468.4,3466.5,0.28846994]
[1754088857572,3.0,3468.2,3465.7,3.0]
[1754088857774,3.0,3468.2,3466.0,3.0]
[1754088857775,2.88350634,3468.0,3466.0,3.0]
[1754088857930,6.933,3468.4,3466.1,0.02885086]
[1754088858134,2.88372938,3467.8,3466.8,2.88442707]
[1754088858333,5.386,3468.3,3466.8,2.88442707]
[1754088858334,2.88362014,3467.9,3466.8,0.28844271]
[1754088858574,8.96267492,3468.3,3467.2,2.88411027]
[1754088858875,6.0794,3468.3,3467.0,2.88428807]
[1754088859190,4.58956749,3468.2,3466.8,0.28844271]
[1754088859391,4.58956749,3468.2,3465.9,2.88518745]
[1754088859392,0.03604279,3468.1,3466.1,3.0]
[1754088859551,7.47291587,3468.2,3465.6,0.02885503]
[1754088859552,0.55,3467.5,3465.6,0.02885503]
[1754088859747,2.88456044,3466.8,3464.7,8.26920673]
[1754088860062,2.88475407,3466.5,3466.4,0.144]
[1754088860376,2.88488123,3466.4,3465.5,2.88557546]
[1754088860542,3.02867085,3466.6,3466.1,0.144]
[1754088860736,2.88476449,3466.5,3466.1,0.144]
[1754088860975,1.04016709,3466.6,3466.1,0.144]
[1754088861186,2.88516105,3466.1,3465.1,2.88585168]
[1754088861390,8.26510792,3466.1,3465.9,0.144]
[1754088861689,5.38,3466.1,3465.9,0.144]
[1754088862402,0.144,3466.5,3466.0,0.144]
[1754088862403,5.379,3466.5,3466.0,0.144]
[1754088862756,5.379,3466.5,3466.4,0.144]
[1754088862958,5.378,3466.9,3466.4,0.144]
[1754088863210,5.378,3466.9,3466.8,0.144]
[1754088863566,5.378,3467.6,3466.9,2.8843563]
[1754088863877,0.001,3467.8,3467.5,0.144]
[1754088864078,2.88421428,3467.2,3466.9,0.144]
[1754088864290,5.377,3467.3,3466.9,0.144]
[1754088864493,2.88433804,3467.0,3466.9,0.144]
[1754088864679,2.8842776,3467.1,3466.9,0.144]
[1754088864909,2.88433804,3467.0,3465.6,3.0]
[1754088865082,2.88432539,3467.1,3466.8,0.144]
[1754088865262,0.144,3467.2,3466.8,0.144]
[1754088865591,0.144,3467.2,3467.0,0.144]
[1754088865592,2.88422265,3467.2,3467.0,0.144]
[1754088865793,5.377,3467.3,3467.0,0.144]
[1754088865996,2.88450571,3466.8,3465.8,3.0]
[1754088866167,6.0587,3467.3,3466.0,3.0]
[1754088866494,2.88489531,3466.4,3465.7,3.0]
[1754088866697,2.88488611,3466.4,3465.6,3.0]
[1754088867001,2.88488611,3466.4,3464.9,5.374]
[1754088867002,2.8850731,3466.2,3465.1,2.8859084]
[1754088867161,2.88379787,3467.7,3465.2,0.02885836]
[1754088867359,5.373,3467.1,3466.7,0.144]
[1754088867561,2.88455308,3466.8,3465.4,3.0]
[1754088867757,2.88433804,3467.0,3466.9,0.144]
[1754088869669,0.001,3467.8,3466.9,0.144]
[1754088869873,0.001,3467.8,3466.2,3.0]
[1754088869874,0.001,3467.8,3467.1,2.88425226]
[1754088870208,0.001,3467.8,3467.2,0.29130956]
[1754088870358,0.001,3467.8,3467.7,2.8837558]
[1754088870562,0.001,3467.8,3467.7,5.91259335]
[1754088870886,1e-08,3467.8,3467.7,5.8837558]
[1754088871194,1e-08,3467.8,3467.7,6.4337558]
[1754088871372,1e-08,3467.8,3467.7,7.36551642]
[1754088871982,1e-08,3467.8,3467.7,6.81551642]
[1754088872296,1e-08,3467.8,3467.7,5.8837558]
[1754088873687,1e-08,3467.8,3467.3,2.8840352]
[1754088873688,1e-08,3467.8,3467.3,2.88402596]
[1754088873888,1e-08,3467.8,3467.1,6.932]
[1754088874394,1e-08,3467.8,3467.0,2.88429646]
[1754088874593,1e-08,3467.8,3467.1,5.88425077]
[1754088874796,1e-08,3467.8,3466.9,3.0]
[1754088875101,1e-08,3467.8,3466.9,3.82474923]
[1754088875312,1e-08,3467.8,3467.0,3.02884338]
[1754088875503,1e-08,3467.8,3467.0,0.02884338]
[1754088875860,1e-08,3467.8,3467.7,5.8837558]
[1754088876081,1e-08,3467.8,3467.7,6.76051667]
[1754088877403,1e-08,3467.8,3466.9,0.82474923]
[1754088877713,1e-08,3467.8,3467.0,2.88432956]
[1754088877875,2.88467085,3466.6,3464.5,6.929]
[1754088878064,3.43467085,3466.6,3464.5,6.929]
[1754088878260,2.88483729,3466.4,3464.7,5.356]
[1754088878476,0.55,3466.6,3464.8,1.2285]
[1754088878804,2.88448452,3466.9,3465.1,3.0]
[1754088879005,2.88450793,3466.8,3465.9,2.88518056]
[1754088879174,0.03605734,3466.7,3465.5,2.88558607]
[1754088879505,2.8847265,3466.6,3465.2,3.0]
[1754088879809,2.88459597,3466.7,3466.5,0.144]
[1754088879962,0.55,3467.3,3466.5,0.144]
[1754088880169,0.144,3467.6,3466.5,0.144]
[1754088880379,7.9363,3467.5,3467.1,0.144]
[1754088880577,2.88417166,3467.2,3467.1,0.144]
[1754088880777,7.9363,3467.5,3467.1,0.144]
[1754088881081,2.88417166,3467.2,3467.1,0.144]
[1754088881282,9.81293205,3467.5,3467.1,0.144]
[1754088881698,1e-08,3467.8,3467.4,0.144]
[1754088882007,1e-08,3467.8,3466.5,3.0]
[1754088882008,2.88408848,3467.3,3466.5,3.0]
[1754088882171,0.001,3467.4,3467.2,0.144]
[1754088882372,2.88409133,3467.3,3467.2,0.144]
[1754088883089,0.001,3467.4,3467.2,0.144]
[1754088883295,2.88408848,3467.3,3467.2,0.144]
[1754088883490,2.8843269,3467.1,3466.4,0.002]
[1754088883803,0.551,3467.4,3467.0,0.144]
[1754088884007,2.88417166,3467.2,3466.8,0.144]
[1754088884168,3.0,3467.2,3466.4,0.146]
[1754088884371,2.88475407,3466.5,3466.4,0.146]
[1754088884602,0.144,3467.0,3466.4,0.146]
[1754088884789,2.88472775,3466.6,3466.4,0.146]
[1754088884986,2.88453294,3466.8,3466.4,0.146]
[1754088885195,2.88473872,3466.6,3466.4,0.146]
[1754088885807,2.88475407,3466.5,3466.4,0.002]
[1754088886026,3.47081349,3466.5,3466.4,0.002]
[1754088886189,2.88475407,3466.5,3466.4,0.002]
[1754088886506,2.8846407,3466.7,3466.4,0.146]
[1754088886682,3.0,3466.8,3466.4,0.146]
[1754088886890,2.88464615,3466.7,3466.4,0.146]
[1754088887508,6.04,3467.0,3466.4,0.146]
[1754088887713,3.0,3466.9,3466.4,0.146]
[1754088887929,6.43508698,3466.1,3466.0,1e-08]
[1754088888076,6.43508698,3466.1,3463.8,0.002]
[1754088888077,2.88664543,3464.3,3463.8,0.002]
[1754088888268,2.88608617,3464.9,3464.8,0.144]
[1754088888486,2.88647749,3464.5,3464.2,0.144]
[1754088888713,5.345,3465.2,3464.2,0.02886669]
[1754088888892,5.345,3465.2,3464.4,0.144]
[1754088889206,0.55,3465.8,3465.1,0.144]
[1754088889207,3.0,3465.7,3465.1,0.144]
[1754088889412,5.88547809,3465.7,3465.3,0.144]
[1754088889705,2.88590667,3465.2,3464.2,2.88666145]
[1754088889870,2.88566976,3465.4,3465.1,0.144]
[1754088889871,2.88573425,3465.4,3465.1,0.144]
[1754088890070,2.88573425,3465.4,3464.1,0.002]
[1754088890071,2.88517022,3466.0,3465.2,2.88575727]
[1754088890371,2.88551946,3465.6,3464.8,2.88611238]
[1754088890797,2.8853354,3465.9,3464.9,2.88606624]
[1754088890798,2.88545224,3465.7,3464.9,2.88606624]
[1754088890971,2.88545224,3465.7,3464.7,2.88623091]
[1754088890972,5.488,3466.0,3465.5,0.144]
[1754088891195,5.344,3466.0,3465.6,0.144]
[1754088891398,5.344,3466.0,3465.9,0.144]
[1754088892292,5.342,3466.4,3465.9,0.144]
[1754088892683,5.342,3466.4,3466.3,0.144]
[1754088893682,2.88451124,3466.8,3466.3,0.144]
[1754088893683,5.34,3466.8,3466.3,0.144]
[1754088894234,5.34,3467.6,3467.0,2.88433319]
[1754088894381,5.34,3467.6,3467.3,0.144]
[1754088894836,8.22390988,3467.6,3467.3,0.144]
[1754088894982,2.88450444,3466.8,3465.2,3.0]
[1754088895322,2.88486292,3466.4,3465.3,0.834]
[1754088895540,2.88490331,3466.4,3466.2,0.144]
[1754088895821,2.88492052,3466.3,3466.2,0.144]
[1754088896143,2.88492052,3466.3,3464.9,2.88602161]
[1754088896144,0.55,3466.3,3464.9,2.88602161]
[1754088896299,0.694,3466.3,3464.2,5.337]
[1754088896641,2.88666936,3464.2,3462.8,0.002]
[1754088897246,5.92275272,3464.2,3464.1,1e-08]
[1754088897536,2.88691936,3463.9,3463.8,1e-08]
[1754088897697,8.06344637,3463.9,3463.8,1e-08]
[1754088897881,8.02735988,3463.9,3463.8,1e-08]
[1754088898289,13.36235988,3463.9,3463.8,1e-08]
[1754088898597,11.77191936,3463.9,3463.8,1e-08]
[1754088899493,12.80718978,3463.9,3463.8,1e-08]
[1754088900217,0.55,3463.5,3462.8,0.002]
[1754088900517,3.0,3463.8,3462.8,0.002]
[1754088900518,1.03527042,3463.9,3463.0,3.0]
[1754088900728,0.6033,3466.3,3463.9,5.88691936]
[1754088900729,0.144,3464.6,3463.9,5.88691936]
[1754088900951,5.333,3465.6,3464.7,2.88619951]
[1754088901229,5.333,3465.5,3465.1,0.144]
[1754088901431,2.88588868,3465.2,3463.4,3.0]
[1754088901634,2.88600288,3465.0,3463.9,2.8868594]
[1754088901842,2.88630876,3464.7,3463.8,2.88697165]
[1754088902018,3.55,3464.6,3464.4,0.144]
[1754088902188,2.88704173,3463.8,3462.9,2.88768247]
[1754088902522,5.333,3463.8,3463.6,2.88715542]
[1754088902744,5.333,3463.8,3463.0,0.02887669]
[1754088902745,0.55,3463.9,3462.8,0.002]
[1754088902924,2.88768556,3463.0,3462.8,0.002]
[1754088903236,0.144,3463.4,3462.9,0.144]
[1754088903440,5.331,3463.6,3463.3,0.144]
[1754088903736,5.331,3463.6,3463.0,0.9517]
[1754088903737,3.43758626,3463.1,3463.0,0.144]
[1754088903885,6.43775303,3462.9,3462.8,0.002]
[1754088904084,11.91275303,3462.9,3462.8,1e-08]
[1754088904286,14.39642696,3462.9,3462.8,1e-08]
[1754088904532,14.39642696,3462.9,3459.7,2.89036306]
[1754088904533,0.55,3462.5,3459.7,2.89036306]
[1754088904742,3.0,3462.8,3458.2,3.04263374]
[1754088904743,0.1448,3461.5,3461.0,0.1448]
[1754088904950,9.60819269,3462.3,3460.1,0.4679]
[1754088904951,0.1448,3461.1,3460.7,0.1448]
[1754088905229,0.1448,3461.1,3460.1,0.4679]
[1754088905230,6.58438881,3460.7,3460.1,0.1448]
[1754088905441,3.43992283,3460.3,3459.7,0.1448]
[1754088905654,0.55,3460.3,3459.5,0.00783943]
[1754088905807,0.98205167,3460.4,3460.0,0.1448]
[1754088905990,0.98205167,3460.4,3460.3,2.88992283]
[1754088906196,0.98205167,3460.4,3460.3,4.61588942]
[1754088906585,5.329,3461.8,3461.5,2.88885714]
[1754088906837,0.4559,3462.6,3460.3,4.72596659]
[1754088906838,0.1448,3462.5,3461.6,0.9517]
[1754088907037,5.328,3462.7,3462.3,0.1448]
[1754088907386,0.95049313,3462.8,3461.7,2.88875408]
[1754088907586,0.95049313,3462.8,3462.6,0.1448]
[1754088908260,12.16541882,3462.7,3462.6,0.1448]
[1754088908390,5.879,3462.7,3462.6,0.1448]
[1754088908591,8.76691983,3462.7,3462.6,0.1448]
[1754088908819,2.88823881,3462.4,3461.6,2.88881692]
[1754088909030,0.95049313,3462.8,3461.7,3.86932706]
[1754088909200,0.95049313,3462.8,3461.8,0.0288867]
[1754088909530,0.95049313,3462.8,3462.7,0.144]
[1754088910112,3.83832956,3462.8,3462.7,0.144]
[1754088910313,0.95049313,3462.8,3462.7,0.144]
[1754088910521,0.95049313,3462.8,3461.8,0.4838]
[1754088910721,3.83833565,3462.8,3462.6,0.1448]
[1754088910921,0.95049313,3462.8,3462.6,0.1448]
[1754088911123,0.95049313,3462.8,3462.7,2.88791983]
[1754088911307,0.95049313,3462.8,3462.7,3.83961983]
[1754088911508,5.326,3463.8,3462.7,0.9517]
[1754088911734,5.326,3463.8,3462.8,4.21113651]
[1754088912004,2.88741711,3463.4,3462.8,0.69845815]
[1754088912242,2.88716691,3463.7,3463.4,0.144]
[1754088912442,5.326,3463.8,3463.3,0.144]
[1754088912606,5.326,3463.8,3462.7,0.4679]
[1754088912806,2.88716941,3463.6,3463.5,0.144]
[1754088913114,0.55,3463.5,3462.4,3.0]
[1754088913313,2.88758205,3463.2,3462.0,0.9517]
[1754088913520,5.324,3463.1,3462.0,0.9517]
[1754088913754,5.324,3463.1,3462.2,3.0]
[1754088913916,0.4559,3463.7,3461.8,2.88861149]
[1754088913917,5.323,3464.2,3463.0,0.144]
[1754088914117,8.20967723,3464.2,3463.0,3.0]
[1754088914329,5.323,3464.2,3463.2,2.88746486]
[1754088914531,5.322,3464.2,3463.4,2.88727409]
[1754088914746,8.20869392,3464.2,3463.9,0.144]
[1754088914908,2.88683602,3464.0,3463.9,0.144]
[1754088915108,5.322,3464.2,3463.5,2.88724267]
[1754088915348,2.88683602,3464.0,3463.9,0.144]
[1754088915845,2.88784019,3462.8,3462.0,3.0]